Cogmind - Beta 16 @@@ ROGUE MODE // 2026.01.11 @ 14:21:57 Player: jam Result: Core destroyed Performance ------------- Evolutions (0) 0 Regions Visited (1) 200 Robots Destroyed (10) 50 Value Destroyed (160) 160 Prototype IDs (0) 0 Alien Tech Used (0) 0 Bonus (0) 0 TOTAL SCORE: 410 Bonus ------- None Cogmind --------- Core Integrity 0/250 Matter 152/300 Energy 70/125 System Corruption 0% Temperature Critical (568) Movement Treading (240) Ox1 Location -10/Materials Parts ------- > --- POWER (1) -------- Light Ion Engine > --- PROPULSION (2) --- Light Treads > --- UTILITY (2) ------ Large Storage Unit Seismic Detector > --- WEAPON (2) ------- Medium Laser Small Laser > --- INVENTORY (15) --- Aluminum Leg Aluminum Leg Small Storage Unit Medium Laser Peak State ------------ > --- POWER ------------ Ion Engine > --- PROPULSION ------- Light Treads Light Treads > --- UTILITY ---------- Small Storage Unit Seismic Detector > --- WEAPON ----------- Medium Laser Medium Laser > --- INVENTORY -------- Light Ion Engine Aluminum Leg Aluminum Leg Small Laser [Rating: 7] Favorites ----------- Power Ion Engine Engine Ion Engine Propulsion Light Treads Treads Light Treads Utility Small Storage Unit Device Seismic Detector Storage Small Storage Unit Weapon Medium Laser Energy Gun Medium Laser Build | -11 -10 ------- Run | Yrd Mat Slots Evolved . | . . Power . | . . Propulsion . | . . Utility . | . . Weapon . | . . Parts Attached 10 | 9 1 Power 2 | 2 . Engine 2 | 2 . Core . | . . Reactor . | . . Propulsion 2 | 2 . Treads 2 | 2 . Leg . | . . Wheel . | . . Hover . | . . Flight . | . . Utility 3 | 2 1 Device 1 | 1 . Storage 2 | 1 1 Processor . | . . Hackware . | . . Protection . | . . Artifact . | . . Weapon 3 | 3 . Energy Gun 3 | 3 . Energy Cannon . | . . Ballistic Gun . | . . Ballistic Cannon . | . . Launcher . | . . Special Weapon . | . . Impact Weapon . | . . Slashing Weapon . | . . Piercing Weapon . | . . Special Melee Weapon . | . . Unidentified Prototypes . | . . Parts Lost 2 | . 2 Power 1 | . 1 Propulsion 1 | . 1 Utility . | . . Weapon . | . . Highest Loss Streak 2 | . 2 To Critical Strikes . | . . Average Backups 3 | 3 4 Power . | . . Propulsion 1 | 1 2 Utility . | . . Weapon . | . 1 Tool/Special . | . . Unused Backups 2 | . 2 Power . | . . Propulsion 2 | . 2 Utility . | . . Weapon . | . . Tool/Special . | . . Average Slot Usage (%) 99 | . 99 Engine 14 | . 14 Treads 27 | . 27 Device 14 | . 14 Storage 14 | . 14 Energy Gun 28 | . 28 Peak Build Rating 7 | 7 7 Average Rating 6 | 5 6 On Entrance 3 | . 7 Avg Prop Armor Cover (%) . | . . Naked Turns . | . . Heaviest Build 30 | 15 30 Greatest Support 40 | 40 40 Greatest Overweight (x) 1 | 1 1 Average Overweight (x) . | . . Largest Inventory Capacity 15 | 8 15 Average Capacity 10 | 7 14 Most Carried 5 | 4 5 Average Carried 4 | 3 4 Final Capacity 15 | 8 15 Final Carried 4 | 4 4 Class Distribution -------------------- 100% | Mutant Dominant Class ---------------- Mutant | -10/Materials Resources | -11 -10 ----------- Run | Yrd Mat Matter Collected 239 | 239 . Remotely . | . . Salvage Created 259 | 97 162 Parts 12 | 5 7 Haulers Intercepted . | . . Recyclers Shooed 3 | 1 2 Parts Field Recycled . | . . Retrieved Matter . | . . Parts Self-Destructed . | . . Prevented . | . . Parts Restored . | . . Kills | -11 -10 ------- Run | Yrd Mat Combat Hostiles Destroyed 6 | . 6 Guns 6 | . 6 Classes Destroyed 3 | 1 2 Tunneler 4 | 4 . Swarmer 3 | . 3 Grunt 3 | . 3 Best Kill Streak 6 | 1 6 Combat Bots Only 6 | . 6 Max Kills in Single Turn 2 | 1 2 Gunslinging . | . . Exploded . | . . Melee . | . . Uniques/NPCs Destroyed . | . . Combat | -11 -10 -------- Run | Yrd Mat Hostile Shots Fired 80 | . 80 Missed 14 | . 14 Hits 66 | . 66 Projectile 66 | . 66 Critical Strikes 1 | . 1 Damage Taken 730 | . 730 Core 270 | . 270 Absorbed by Shields . | . . Core Remaining (%) 100 | 100 . Volleys Fired 29 | 10 19 Largest 2 | 2 2 Hottest 100 | 100 100 Shots Fired 56 | 20 36 Gun 56 | 20 36 Cannon . | . . Launcher . | . . Special . | . . Kinetic . | . . Thermal 56 | 20 36 Explosive . | . . Electromagnetic . | . . Robot Hit Streak 9 | 5 9 Robot Miss Streak 3 | 2 3 Penetration Max . | . . Secondary Targets 1 | . 1 Max Gunslinging Chain 1 | . 1 Shots Hit Robots 34 | 13 21 Core Hits 14 | 4 10 Critical Kills . | . . Critical Parts Destroyed . | . . Critical Strikes 6 | 5 1 Burn 6 | 5 1 Melee Attacks . | . . Impact . | . . Slashing . | . . Piercing . | . . Sneak Attacks . | . . Combat Hostiles . | . . Follow-up Attacks . | . . Damage Inflicted 466 | 160 306 Guns 466 | 160 306 Cannons . | . . Explosions . | . . Melee . | . . Ramming . | . . Kinetic . | . . Thermal 466 | 160 306 Explosive . | . . Electromagnetic . | . . Impact . | . . Slashing . | . . Piercing . | . . Highest Corruption . | . . Average Corruption . | . . Corruption Purged . | . . Corruption Blocked . | . . Overload Shots . | . . Overflow Damage . | . . Projectiles . | . . Explosions . | . . Melee . | . . Knockbacks . | . . Impact . | . . Kinetic . | . . Secondary . | . . Self-Inflicted Damage . | . . Shots . | . . Rammed . | . . Targets Rammed . | . . Kicked . | . . Crushed . | . . Highest Temperature 597 | 156 597 Average Temperature 241 | 59 392 Received Heat Transfer 144 | . 144 Effects 12 | . 12 Shutdowns 4 | . 4 Matter Decay 2 | . 2 Short Circuit 2 | . 2 Damage (minor) 1 | . 1 Damage (core) 3 | . 3 Siege Activations . | . . Martial Activations . | . . Shielding Activations . | . . Robots Disrupted . | . . Combat Hostiles . | . . Robots Corrupted . | . . Combat Hostiles . | . . Parts Fried . | . . Impact Corruptions . | . . Robots Melted . | . . Combat Hostiles . | . . Parts Melted 11 | 6 5 Heat Transferred 1802 | 851 951 Parts Sabotaged . | . . Parts Stolen . | . . Parts Stripped . | . . Power Chain Reactions . | . . Alert | -11 -10 ------- Run | Yrd Mat Maximum Alert Level . | . . Low Security (%) 100 | 100 100 Level 1 . | . . Level 2 . | . . Level 3 . | . . Level 4 . | . . Level 5 . | . . High Security . | . . Max Security . | . . Peak Influence 110 | 5 110 Initial . | . . Average 5 | . 11 Influence Increases 175 | 20 155 Destroy 0b10 Robot/C 120 | . 120 Destroy 0b10 Robot/NC 20 | 20 . Destroy Leader 20 | . 20 Lose Combat Pursuer 15 | . 15 Influence Decreases 75 | 20 55 Time Decay 55 | 20 35 Lost Part 20 | . 20 Squads Dispatched 1 | . 1 Investigation 1 | . 1 Extermination . | . . Reinforcement . | . . Assault . | . . Garrison . | . . Intercept . | . . Searches Triggered . | . . Construction Impeded . | . . Haulers Reinforced . | . . Active Scanning Responses . | . . Cargo Convoy Interrupts . | . . Stealth | -11 -10 --------- Run | Yrd Mat Distress Signals 1 | . 1 Communications Jammed . | . . Distress Signals . | . . Times Spotted 6 | . 6 Peak Tracking Total 5 | . 5 Tactical Retreats 1 | . 1 Traps | -11 -10 ------- Run | Yrd Mat Traps Triggered 1 | . 1 Indirectly . | . . Trap Hack Attempts . | . . Triggered . | . . Disarmed . | . . Reprogrammed . | . . Reused . | . . Traps Extracted . | . . Installed . | . . Triggered . | . . Machines | -11 -10 ---------- Run | Yrd Mat Machines Disabled . | . . Max in Single Turn . | . . Machines Repaired . | . . Machines Dismantled . | . . Machines Sabotaged . | . . Overloaded Fab Kills . | . . Hacking | -11 -10 --------- Run | Yrd Mat Machines Accessed 1 | . 1 Terminals . | . . Fabricators . | . . Repair Stations . | . . Recycling Units 1 | . 1 Scanalyzers . | . . Garrison Access . | . . Total Hacks 1 | . 1 Successful 1 | . 1 Failed . | . . Catastrophic . | . . Database Lockouts . | . . Manual 1 | . 1 Terminals . | . . Fabricators . | . . Repair Stations . | . . Recycling Units 1 | . 1 Scanalyzers . | . . Garrison Access . | . . Terminal Hacks . | . . Fabricator Hacks . | . . Repair Station Hacks . | . . Recycling Unit Hacks . | . . Scanalyzer . | . . Garrison Access Hacks . | . . Unauthorized Hacks 1 | . 1 Terminals . | . . Fabricators . | . . Repair Stations . | . . Recycling Units 1 | . 1 Monitor 1 | . 1 Scanalyzers . | . . Garrison Access . | . . Data Cores Recovered . | . . Used . | . . Hacking Detections . | . . Full Trace Events . | . . Feedback Events . | . . Feedback Blocked . | . . Robot Schematics Acquired . | . . Robots Built . | . . Authchips . | . . Time . | . . Total Robot Build Rating . | . . Part Schematics Acquired . | . . Parts Built . | . . Authchips . | . . Time . | . . Total Part Build Rating . | . . Part Studies Acquired . | . . Parts Repaired . | . . Time . | . . Parts Recycled . | . . Recycled Matter . | . . Retrieved Matter . | . . Retrieved Components . | . . Parts Scanalyzed . | . . Part Schematics Acquired . | . . Parts Damaged . | . . Bothacking | -11 -10 ------------ Run | Yrd Mat Used RIF Installer . | . . Robots Hacked . | . . Non-combat . | . . Combat . | . . Robot Hacks Applied . | . . Relay Couplers Released . | . . Fabnet Peak Effective % . | . . Robots Rewired . | . . Allies Hacked . | . . Hacks Repelled . | . . Allies | -11 -10 -------- Run | Yrd Mat Total Allies . | . . Largest Group . | . . Highest-Rated Group . | . . Highest-Rated Ally . | . . Total Orders . | . . Ally Attacks . | . . Total Damage . | . . Kills . | . . Allies Corrupted . | . . Allies Melted . | . . Intel | -11 -10 ------- Run | Yrd Mat Active Infowar (turns) 211 | 26 185 Seismic 211 | 26 185 Robot Analysis Total . | . . Derelict Logs Recovered . | . . Drone Launches . | . . Drone Recoveries . | . . Exploration | -11 -10 ------------- Run | Yrd Mat Turns Passed 415 | 231 184 Spaces Moved 197 | 119 78 Core 5 | 5 . Treads 192 | 114 78 Legs . | . . Wheels . | . . Hover . | . . Flight . | . . Fastest Speed 50 | 50 160 Average Speed 158 | 156 161 Slowest Speed 240 | 160 240 Overloaded Moves . | . . Propulsion Burnouts . | . . Robots Hopped . | . . Potential Cave-ins . | . . Cave-ins Triggered . | . . Exploration Rate (%) 13 | 9 17 Regions Visited 1 Branch Regions . Pre-discovered Areas . | . . Known Exits Taken . | . . Unknown Exits Taken 1 | 1 . Scrap Searched . | . . Spaces Dug . | . . Terrain Destroyed . | . . Melee . | . . Projectile . | . . AOE . | . . Terrain Rammed . | . . Walls Destroyed . | . . Machines Disabled . | . . Actions | -11 -10 --------- Run | Yrd Mat Total 240 | 140 100 Wait . | . . Move 196 | 118 78 Hop . | . . Pick Up 2 | 2 . Fast Attach 8 | 8 . Attach 1 | . 1 Detach 1 | 1 . Swap 3 | 1 2 Drop . | . . Fire 29 | 10 19 Melee . | . . Ram . | . . Kick . | . . Crush . | . . Escape Stasis . | . . Rewire . | . . Trap . | . . Miscellaneous . | . . Route ------- -11/Scrapyard -10/Materials History --------- Turn | Location | Event 7 | -11/Scrapyard | Discovered new exit (range 15) 232 | -11/Scrapyard | Entered Materials 314 | -10/Materials | Build established: Mutant 399 | -10/Materials | Core integrity fell below 50% 403 | -10/Materials | Core integrity fell below 20% 417 | -10/Materials | Core destroyed Last Messages --------------- 00402_ Lgt. Treads destroyed. 00403_ Overheating: Core damaged (-30). 00403_ R-06 Scavenger collects Lgt. Assault Rifle. 00404_ Sml. Laser melted. 00404_ Ion Engine melted. 00404_ G-34 Mercenary destroyed. 00404_ S-10 Pest destroyed. 00404_ R-06 Scavenger collects Lgt. Ion Engine. 00405_ R-06 Scavenger collects Aluminum Leg. 00407_ Power failure, Lgt. Ion Engine shutdown. 00407_ S-10 Pest destroyed. 00411_ R-06 Scavenger collects Flight Unit. 00414_ Overheating: Matter decay (-47). 00414_ R-06 Scavenger inserts Aluminum Leg into recycling unit. 00414_ >> MONITOR: Recycling Unit M002 accepting Aluminum Leg (78%). 00415_ Power failure, Lgt. Ion Engine shutdown. 00415_ Med. Laser broken. 00415_ Overheating: Short circuit. 00417_ Overheating: Core damaged (-42). Map ----- +----------------------------------------------------+ | ?????????????????????????????????????????????????? | | ?????????????????????????????????????????????????? | | ?????????????????????????????????????????????????? | | ?????????????????????????????????????????????????? | | ?????????????????????????????????????????????????? | | ?????????????????????????????????????????????????? | | ?????????????????????????????????????????????????? | | ?????????????????????????????????????????????????? | | ?????????????????????????????????????????????????? | | ?????????????????????????????????????????????????? | | ?????????????????????????????????????????????????? | | ?????????????????????????????????????????????????? | | ?????????????????????????????????????????????????? | | ?????????????????????????????????????????????????? | | ????????????????????????????????T"???????????????? | | ??????????????????????????????? "????????????????? | | ??????????????????????????????? ????????????????? | | ??????????????????????#######? ?????????????????? | | ??????????????????????# ##k??????????????????? | | ??????????????????????# ! ???????????????????? | | ??????????????????????+ ???????????????????? | | ??????????????????????# %% ????????????????????? | | ??????????????????????? r ?????????????????????? | | ???????????????????????#% %#?????????????????????? | | ???????????????????????# %*#?????????????????????? | | ?????????????########### @ #?????????????????????? | | ?????????????# # #?????????????????????? | | ?????????????# #r #?######??????????????? | | ?????????????# == # # #??????????????? | | ?????????????# == + # """#??????????????? | | ?????????????#""" =[ # + """#??????????????? | | ?????????????#"R # # """#??????????????? | | ?????????????#""" #% # #??????????????? | | ?????????????# #= #? #??????????????? | | ?????????????####+###### #?######??????????????? | | ????????????????# #????# #?????????????????????? | | ????????????????# #????# #?????????????????????? | | ????????????????# #????# ###???????????????????? | | ?????????????#### ###### r""#???????????????????? | | ?????????????# Y"#???????????????????? | | ???????????### ######## ""#???????????????????? | | ??????????# # # # ###???????????????????? | | ??????????# + """ # #?????????????????????? | | ??????????# # ## """ # #?????????????????????? | | ??????????#### ## """ # #?????????????????????? | | ?????????????# ## # #?????????????????????? | | ?????????????# ## # #?????????????????????? | | ?????????????# ######+## #?????????????????????? | | ?????????????# #?????????????????????? | | ?????????????# #?????????????????????? | +----------------------------------------------------+ Best States ------------- Heat Dissipation 25 Energy Generation 10 Energy Capacity 250 Matter Stores 259 Matter Capacity 300 Sight Range 16 Terrain Scan Density 10 Evasion (%) 40 Recoil Reduction 2 Item Schematics ----------------- None Robot Schematics ------------------ None Fabricated ------------ Nothing Repaired ---------- Nothing Studied --------- None Alien Tech Used ----------------- None Achievements -------------- None Challenges ------------ None Game ------ Seed ArmorFortressMatter Manual? 0 Play Time 00:03:49 Cumulative 29.3 hours Start 2026.01.11 @ 14:19:05 End 2026.01.11 @ 14:21:57 Sessions 1 Manual Loads 0 Difficulty Rogue Special Mode None Game No. 54 Rogue 51 Adventurer 3 Explorer 0 Win Type - Total 0 Types 0/0/0/0/0/0/0/0/0/0 Lore% 12 Gallery% 29 Achievement% 22 Wizard Run 0 Options --------- Layout 0 ASCII 0 Keyboard 0 Movement Mouse Keybinds 0 Fullscreen 1 Font 18/SmallcapsGlow Map View 65x51 Zoom Use 0% Tactical HUD 1 Map Filters NONE Filters NONE Steam 1 RUN: c3186533-b413-4093-9cb4-2d9461a3c06e